bitfinex/quotes_ETHUSD_20230103
["timestamp","ask_amount","ask_price","bid_price","bid_amount"]
[1672761846866,10.2953722,1212.4,1212.3,2.14538891]
[1672761847186,44.9885322,1212.4,1212.3,0.00538891]
[1672761847403,35.0908122,1212.4,1212.3,0.00538891]
[1672761847709,25.1930922,1212.4,1212.3,0.00538891]
[1672761848277,25.1930922,1212.4,1212.3,0.0014094]
[1672761848926,35.0908122,1212.4,1212.3,0.0014094]
[1672761849133,40.11744724,1212.4,1212.3,0.0014094]
[1672761849340,50.01516724,1212.4,1212.3,0.0014094]
[1672761849549,56.13857786,1212.4,1212.3,0.0014094]
[1672761850475,56.16123297,1212.4,1212.3,0.0014094]
[1672761851232,56.11123297,1212.4,1212.3,0.0014094]
[1672761851438,52.98782235,1212.4,1212.3,0.0014094]
[1672761853030,53.60702235,1212.4,1212.3,0.0014094]
[1672761853398,54.02686206,1212.4,1212.3,0.0014094]
[1672761856547,58.1757232,1212.4,1212.3,0.0014094]
[1672761857069,60.2247232,1212.4,1212.3,0.0014094]
[1672761857702,5.5,1212.3,1212.2,0.00589491]
[1672761857917,31.32282038,1212.3,1212.2,0.00589491]
[1672761858087,61.01841038,1212.3,1212.2,0.00589491]
[1672761860092,70.91694038,1212.3,1212.2,0.00589491]
[1672761860305,56.86954924,1212.3,1212.2,0.00589491]
[1672761860697,46.97101924,1212.3,1212.2,0.00589491]
[1672761860776,53.09934864,1212.3,1212.2,0.00589491]
[1672761861090,56.86954924,1212.3,1212.2,0.00589491]
[1672761861323,62.99774233,1212.3,1212.2,0.00589491]
[1672761861703,62.76774233,1212.3,1212.2,0.00589491]
[1672761861894,42.35148233,1212.3,1212.2,0.00589491]
[1672761862106,34.72148233,1212.3,1212.2,0.00589491]
[1672761862521,44.62201233,1212.3,1212.2,0.00589491]
[1672761862776,44.62001233,1212.3,1212.2,0.00589491]
[1672761863777,44.85001233,1212.3,1212.2,0.00589491]
[1672761864641,54.74854233,1212.3,1212.2,0.00589491]
[1672761865504,44.85001233,1212.3,1212.2,0.00589491]
[1672761866402,54.74854233,1212.3,1212.2,0.00589491]
[1672761867099,44.85001233,1212.3,1212.2,0.00589491]
[1672761867246,33.92946725,1212.3,1212.2,0.00589491]
[1672761867461,10.10617801,1212.3,1212.2,2.07289491]
[1672761867881,10.10617801,1212.3,1212.2,0.00589491]
[1672761868294,20.80093725,1212.3,1212.2,0.00589491]
[1672761868764,30.69946725,1212.3,1212.2,0.00589491]
[1672761868954,30.69946725,1212.3,1212.2,4.10389491]
[1672761868955,40.59799725,1212.3,1212.2,4.10389491]
[1672761869369,35.09799725,1212.3,1212.2,4.10389491]
[1672761870331,35.09799725,1212.3,1212.2,2.05489491]
[1672761870501,25.19946725,1212.3,1212.2,2.05489491]
[1672761871754,44.99652725,1212.3,1212.2,2.05489491]
[1672761871976,39.89034924,1212.3,1212.2,2.05489491]
[1672761872627,46.01854233,1212.3,1212.2,2.05489491]
[1672761872837,56.14707233,1212.3,1212.2,0.00589491]
[1672761874057,56.76627233,1212.3,1212.2,0.00589491]
[1672761875183,47.28108912,1212.3,1212.2,0.00589491]
[1672761876412,46.86774233,1212.3,1212.2,0.00589491]
[1672761877517,27.07068233,1212.3,1212.2,0.00589491]
[1672761877950,20.94248924,1212.3,1212.2,2.05489491]
[1672761878161,35.54479,1212.3,1212.2,0.00589491]
[1672761878633,35.54479,1212.3,1212.2,2.05489491]
[1672761878790,30.75248526,1212.3,1212.2,2.05489491]
[1672761879408,30.75248526,1212.3,1212.2,0.00589491]
[1672761880412,30.52248526,1212.3,1212.2,2.04789491]
[1672761880573,20.00475526,1212.3,1212.2,2.04789491]
[1672761881700,10.10622526,1212.3,1212.2,2.04789491]
[1672761881901,20.00475526,1212.3,1212.2,2.04789491]
[1672761882484,20.00475526,1212.3,1212.2,0.00234639]
[1672761882699,20.00475526,1212.3,1212.2,2.04934639]
[1672761883010,20.00475526,1212.3,1212.2,0.00234639]
[1672761883560,10.51207043,1212.3,1212.2,0.00234639]
[1672761883749,10.51207043,1212.3,1212.2,5.19710563]
[1672761883955,10.51207043,1212.3,1212.2,5.29610563]
[1672761884410,10.74207043,1212.3,1212.2,5.29610563]
[1672761884781,10.51207043,1212.3,1212.2,5.29610563]
[1672761885259,5.40584517,1212.3,1212.2,5.29610563]
[1672761885617,5.40373612,1212.3,1212.2,5.29610563]
[1672761885954,10.50996138,1212.3,1212.2,5.29610563]
[1672761888786,10.50996138,1212.3,1212.2,8.01058619]
[1672761889170,10.50996138,1212.3,1212.2,17.90993619]
[1672761889377,10.50996138,1212.3,1212.2,19.95693619]
[1672761891354,10.50996138,1212.3,1212.2,7.34310563]
[1672761892195,5.40373612,1212.3,1212.2,7.34310563]
[1672761893254,5.40573612,1212.3,1212.2,7.34010563]
[1672761893454,5.40373612,1212.3,1212.2,7.34310563]
[1672761894134,10.50996138,1212.3,1212.2,7.34310563]
[1672761894925,5.40373612,1212.3,1212.2,7.34310563]
[1672761895399,0.40584517,1212.3,1212.2,7.34310563]
[1672761895720,5.51207043,1212.3,1212.2,7.34310563]
[1672761896111,15.41060043,1212.3,1212.2,2.14834639]
[1672761896316,30.30913043,1212.3,1212.2,2.04934639]
[1672761896741,40.20766043,1212.3,1212.2,2.04934639]
[1672761896958,50.10619043,1212.3,1212.2,2.04934639]
[1672761897498,30.30913043,1212.3,1212.2,2.04934639]
[1672761897706,20.41060043,1212.3,1212.2,0.00234639]
[1672761897917,15.30437517,1212.3,1212.2,0.00234639]
[1672761898148,20.4145114,1212.3,1212.2,0.00234639]
[1672761898735,21.43256826,1212.3,1212.2,0.00234639]
[1672761899727,20.4165077,1212.3,1212.2,0.00234639]
[1672761899937,20.4165077,1212.3,1212.2,9.90169639]
[1672761899938,16.0179777,1212.3,1212.2,9.90169639]
[1672761900153,16.0179777,1212.3,1212.2,15.19545563]
[1672761900368,16.0179777,1212.3,1212.2,5.29610563]
[1672761900930,20.80437517,1212.3,1212.2,0.10134639]
[1672761901214,10.90584517,1212.3,1212.2,0.00234639]
[1672761901402,17.03403826,1212.3,1212.2,0.00234639]
[1672761902540,10.90584517,1212.3,1212.2,0.00234639]
[1672761902999,16.01887402,1212.3,1212.2,0.00234639]
[1672761903742,16.01915582,1212.3,1212.2,0.00234639]
[1672761904054,10.90584517,1212.3,1212.2,0.00234639]
[1672761904213,20.80437517,1212.3,1212.2,0.00234639]
[1672761904674,26.93256826,1212.3,1212.2,0.00234639]
[1672761904995,30.25001491,1212.3,1212.2,0.00234639]
[1672761905165,15.56255415,1212.3,1212.2,5.19710563]
[1672761905385,15.56255415,1212.3,1212.2,37.04315563]
[1672761905612,17.09340944,1212.3,1212.2,37.04315563]
[1672761905824,18.13037209,1212.3,1212.2,37.04315563]
[1672761906042,23.98756132,1212.3,1212.2,37.04315563]
[1672761906210,25.07318456,1212.3,1212.2,2.15034639]
[1672761906578,28.30479572,1212.3,1212.2,2.04744925]
[1672761906786,29.88228129,1212.3,1212.2,2.04744925]
[1672761906941,30.72735955,1212.3,1212.2,2.04744925]
[1672761907156,31.30333094,1212.3,1212.2,2.04744925]
[1672761907419,34.16979249,1212.3,1212.2,2.04744925]
[1672761907736,37.51845354,1212.3,1212.2,2.04744925]
[1672761907949,38.56075146,1212.3,1212.2,2.04744925]
[1672761908162,39.16665731,1212.3,1212.2,2.04744925]
[1672761908300,39.4588652,1212.3,1212.2,2.04744925]
[1672761908513,42.31574695,1212.3,1212.2,2.04744925]
[1672761908724,46.162196,1212.3,1212.2,2.04744925]
[1672761908973,46.75667176,1212.3,1212.2,2.04744925]
[1672761909181,47.07784376,1212.3,1212.2,2.04744925]
[1672761909414,47.37762028,1212.3,1212.2,2.04744925]
[1672761909572,48.71360452,1212.3,1212.2,2.04744925]
[1672761909790,49.58289005,1212.3,1212.2,2.04744925]
[1672761910131,53.09849511,1212.3,1212.2,2.04744925]
[1672761910367,53.45344037,1212.3,1212.1,31.84747]
[1672761910674,5.0,1212.2,1212.1,41.19109038]
[1672761911051,9.32916917,1212.2,1212.1,41.19109038]
[1672761911263,5.0,1212.2,1212.1,41.19109038]
[1672761911469,9.32916105,1212.2,1212.1,31.29117038]
[1672761911685,5.0,1212.2,1212.1,31.29117038]
[1672761913002,10.11358398,1212.2,1212.1,31.29117038]
[1672761913750,5.11358398,1212.2,1212.1,31.29117038]
[1672761913890,5.11358398,1212.2,1212.1,11.49162038]
[1672761914361,10.11358398,1212.2,1212.1,11.49162038]
[1672761914949,10.11358398,1212.2,1212.1,6.29686114]
[1672761915687,10.11358398,1212.2,1212.1,11.49162038]
[1672761916380,20.01293398,1212.2,1212.1,6.29686114]
[1672761916540,20.01293398,1212.2,1212.1,2.148]
[1672761916748,20.01293398,1212.2,1212.1,2.049]
[1672761917315,10.11358398,1212.2,1212.1,2.049]
[1672761917488,10.11358398,1212.2,1212.1,17.14392924]
[1672761917679,10.11358398,1212.2,1212.1,17.24292924]
[1672761918261,10.11358398,1212.2,1212.1,2.148]
[1672761918472,10.11358398,1212.2,1212.1,2.049]
[1672761919380,15.61358398,1212.2,1212.1,2.049]
[1672761920031,25.51293398,1212.2,1212.1,2.049]
[1672761920835,20.39935,1212.2,1212.1,2.049]
[1672761921047,45.31640596,1212.2,1212.0,9.91526619]
[1672761921317,10.11835596,1212.1,1212.0,19.25888657]
[1672761921482,10.11835596,1212.1,1212.0,11.49858657]
[1672761921691,10.11835596,1212.1,1212.0,13.54258657]
[1672761921692,5.0,1212.1,1212.0,13.54258657]
[1672761922044,20.01852596,1212.1,1212.0,13.54258657]
[1672761922201,20.01852596,1212.1,1212.0,8.34782733]
[1672761923611,20.01852596,1212.1,1212.0,13.54258657]
[1672761923612,10.11835596,1212.1,1212.0,13.54258657]
[1672761924360,10.11835596,1212.1,1212.0,23.44357657]
[1672761924717,10.11835596,1212.1,1212.0,33.34456657]
[1672761925385,9.33203078,1212.1,1212.0,33.34456657]
[1672761925722,9.33203078,1212.1,1212.0,43.24555657]
[1672761925940,9.33203078,1212.1,1212.0,47.03187037]
[1672761928913,5.0,1212.1,1212.0,56.93286037]
[1672761929080,8.7128387,1212.1,1212.0,56.93286037]
[1672761930262,8.7128387,1212.1,1212.0,56.9297901]
[1672761930450,3.7128387,1212.1,1212.0,56.9297901]
[1672761932688,3.7128387,1212.1,1212.0,51.73503086]
[1672761933132,3.7128387,1212.1,1212.0,56.9297901]
[1672761933579,3.7128387,1212.1,1212.0,57.6574173]
[1672761935824,3.7128387,1212.1,1212.0,52.45965806]
[1672761935825,3.7148387,1212.1,1212.0,52.45965806]
[1672761936035,3.7128387,1212.1,1212.0,57.6574173]
[1672761936371,3.7128387,1212.1,1212.0,52.46265806]
[1672761937935,3.7128387,1212.1,1212.0,42.56166806]
[1672761938526,3.7128387,1212.1,1212.0,47.7564273]
[1672761938827,3.71173517,1212.1,1212.0,47.7564273]
[1672761939213,4.39803078,1212.2,1212.0,47.7564273]
[1672761939397,4.33203078,1212.2,1212.1,6.19786114]
[1672761939730,5.0,1212.2,1212.1,6.29686114]
[1672761940107,9.33052852,1212.2,1212.1,16.19703114]
[1672761940311,5.0,1212.2,1212.1,16.19703114]
[1672761940785,5.0,1212.2,1212.1,26.09720114]
[1672761941570,10.11835596,1212.2,1212.1,26.09720114]
[1672761942233,5.0,1212.2,1212.1,26.09720114]
[1672761942455,10.11835596,1212.2,1212.1,26.09720114]
[1672761942676,5.0,1212.2,1212.1,29.24296038]
[1672761942994,15.61835596,1212.2,1212.1,4.24786114]
[1672761943152,25.51770596,1212.2,1212.1,4.14886114]
[1672761943361,15.61835596,1212.2,1212.0,27.87516236]
[1672761943614,4.33085312,1212.1,1212.0,36.72989426]
[1672761943773,9.33085312,1212.1,1212.0,26.82926426]
[1672761943985,9.33085312,1212.1,1212.0,22.1233935]
[1672761944196,9.33085312,1212.1,1212.0,20.0751335]
[1672761945299,9.47085312,1212.1,1212.0,20.0751335]
[1672761945878,9.47085312,1212.1,1212.0,14.88037426]
[1672761946983,9.47085312,1212.1,1212.0,20.0751335]
[1672761947195,9.47085312,1212.1,1212.0,29.9761235]
[1672761948441,9.47085312,1212.1,1212.0,39.8771135]
[1672761950195,9.47085312,1212.1,1212.0,41.9261135]
[1672761951801,5.14,1212.1,1212.0,0.83052312]
[1672761951963,5.14,1212.1,1212.0,0.73152312]
[1672761951964,15.27017,1212.1,1212.0,0.73152312]
[1672761952178,5.37,1212.1,1212.0,0.73152312]
[1672761952677,9.7009153,1212.1,1212.0,0.73152312]
[1672761953351,9.7009153,1212.1,1212.0,37.67325236]
[1672761953352,9.4709153,1212.1,1212.0,37.67325236]
[1672761953568,9.4709153,1212.1,1212.0,37.77225236]
[1672761954010,9.4709153,1212.1,1212.0,37.76958825]
[1672761956193,8.85181202,1212.1,1212.0,48.73489453]
[1672761956399,4.3969153,1212.2,1212.1,5.5]
[1672761956400,0.066,1212.2,1212.1,5.5]
[1672761956610,89.87610291,1212.3,1212.1,48.70239078]
[1672761956837,89.87610291,1212.3,1212.2,13.45088078]
[1672761956838,85.57018761,1212.3,1212.2,13.45088078]
[1672761957060,85.57018761,1212.3,1212.2,43.24793078]
[1672761957641,85.53699228,1212.3,1212.2,43.93771009]
[1672761958432,85.53699228,1212.3,1212.2,45.98671009]
[1672761958608,85.53699228,1212.3,1212.2,52.94322485]
[1672761959010,85.53699228,1212.3,1212.2,50.89422485]
[1672761959810,85.53699228,1212.3,1212.2,31.09552485]
[1672761959946,85.53699228,1212.3,1212.2,40.99487485]
[1672761960372,85.53699228,1212.3,1212.2,50.89422485]
[1672761962469,89.24427878,1212.3,1212.2,60.79357485]
[1672761963265,85.53699228,1212.3,1212.2,60.79357485]
[1672761963628,89.24427878,1212.3,1212.2,60.79357485]
[1672761963840,85.53699228,1212.3,1212.2,60.79357485]
[1672761964735,85.53699228,1212.3,1212.2,58.74457485]
[1672761965553,85.53699228,1212.3,1212.2,57.89343599]
[1672761966154,85.53699228,1212.3,1212.2,59.94243599]
[1672761968989,89.24427878,1212.3,1212.2,24.13689803]
[1672761969199,89.24427878,1212.3,1212.2,18.93499045]
[1672761969476,89.24427878,1212.3,1212.2,9.03564045]
[1672761969690,89.86347878,1212.3,1212.2,9.03564045]
[1672761969874,89.24427878,1212.3,1212.2,28.83434045]
[1672761970063,89.24427878,1212.3,1212.2,34.03624803]
[1672761970477,89.24427878,1212.3,1212.2,14.23754803]
[1672761971605,89.24427878,1212.3,1212.2,24.13689803]
[1672761972134,89.24427878,1212.3,1212.2,9.03564045]
[1672761972135,99.76643758,1212.3,1212.2,9.03564045]
[1672761972343,89.86790758,1212.3,1212.2,18.93499045]
[1672761972512,89.89056269,1212.3,1212.2,9.03564045]
[1672761972724,89.89056269,1212.3,1212.2,4.93764045]
[1672761972929,89.89056269,1212.3,1212.2,4.83864045]
[1672761973341,90.50976269,1212.3,1212.2,4.83864045]
[1672761973593,95.50976269,1212.3,1212.2,4.83864045]
[1672761974549,95.50976269,1212.3,1212.2,14.73799045]
[1672761974789,95.50976269,1212.3,1212.2,14.83699045]
[1672761975367,95.50976269,1212.3,1212.2,20.03889803]
[1672761976963,95.50976269,1212.3,1212.2,22.08789803]
[1672761977706,95.50976269,1212.3,1212.2,16.88599045]
[1672761977857,95.50976269,1212.3,1212.2,22.08789803]
[1672761978068,95.50976269,1212.3,1212.2,16.88599045]
[1672761978274,95.50976269,1212.3,1212.2,6.98664045]
[1672761978813,100.25493355,1212.3,1212.2,0.78877931]
[1672761979069,95.50976269,1212.3,1212.2,0.68977931]
[1672761981647,95.50976269,1212.3,1212.2,35.58973689]
[1672761981877,95.50976269,1212.3,1212.2,35.68873689]
[1672761982278,91.17884739,1212.3,1212.2,35.68873689]
[1672761982901,95.50976269,1212.3,1212.2,35.68873689]
[1672761983164,91.17884739,1212.3,1212.2,35.68873689]
[1672761983778,91.17884739,1212.3,1212.2,37.73773689]
[1672761984154,95.50976269,1212.3,1212.2,37.73773689]
[1672761984595,95.50976269,1212.3,1212.2,32.53582931]
[1672761984905,95.50976269,1212.3,1212.2,12.73712931]
[1672761985120,95.50976269,1212.3,1212.2,20.58747931]
[1672761987301,95.50976269,1212.3,1212.2,10.68812931]
[1672761987971,95.50976269,1212.3,1212.2,20.58546931]
[1672761988783,90.50976269,1212.3,1212.2,10.68611931]
[1672761989448,90.50976269,1212.3,1212.2,0.78676931]
[1672761989666,90.50976269,1212.3,1212.2,2.73076931]
[1672761990196,95.50976269,1212.3,1212.2,12.63011931]
[1672761990361,95.50976269,1212.3,1212.2,10.68611931]
[1672761993298,95.50976269,1212.3,1212.2,15.88802689]
[1672761994268,95.50976269,1212.3,1212.2,35.68672689]
[1672761994911,95.48710758,1212.3,1212.2,44.59852272]
[1672761995127,89.24560568,1212.3,1212.2,48.67752272]
[1672761995517,89.24560568,1212.3,1212.2,58.57687272]
[1672761995859,89.24760568,1212.3,1212.2,60.62387272]
[1672761996126,89.24560568,1212.3,1212.2,60.62687272]
[1672761998498,85.53699228,1212.3,1212.2,60.63087272]
[1672761998735,89.24560568,1212.3,1212.2,60.63087272]
[1672761998904,85.53699228,1212.3,1212.2,60.63087272]
[1672761999108,85.53441305,1212.3,1212.2,60.63087272]
[1672761999322,85.53441305,1212.3,1212.2,57.78528389]
[1672761999754,89.24302645,1212.3,1212.2,45.83593389]
[1672762000830,94.44493403,1212.3,1212.2,43.47961514]
[1672762001047,94.44545918,1212.3,1212.2,6.98563045]
[1672762001259,95.06723593,1212.3,1212.2,39.03912406]
[1672762001569,89.86532835,1212.3,1212.2,39.03912406]
[1672762001747,95.06723593,1212.3,1212.2,19.24042406]
[1672762002640,95.06723593,1212.3,1212.2,29.13977406]
[1672762004250,89.86532835,1212.3,1212.2,43.93303947]
[1672762005238,95.06723593,1212.3,1212.2,31.67824586]
[1672762005499,95.06723593,1212.3,1212.2,26.78433045]
[1672762005945,95.06723593,1212.3,1212.2,29.15649453]
[1672762006309,95.06723593,1212.3,1212.2,27.10649453]
[1672762006557,95.06723593,1212.3,1212.2,24.73433045]
[1672762006729,95.06723593,1212.3,1212.2,29.15539642]
[1672762006940,95.06723593,1212.3,1212.2,39.05474642]
[1672762007214,95.06723593,1212.3,1212.2,43.95018406]
[1672762008766,92.34688658,1212.3,1212.2,43.95018406]
[1672762011465,92.34688658,1212.3,1212.2,41.90018406]
[1672762011728,92.34688658,1212.3,1212.2,43.95018406]
[1672762012406,85.53441305,1212.3,1212.2,55.89253406]
[1672762012846,85.53441305,1212.3,1212.2,45.99318406]
[1672762013142,89.86532835,1212.3,1212.2,45.99318406]
[1672762013414,85.53441305,1212.3,1212.2,45.99318406]
[1672762013625,89.86532835,1212.3,1212.2,45.99318406]
[1672762014967,92.35566951,1212.3,1212.2,45.99318406]
[1672762015157,89.86532835,1212.3,1212.2,45.99318406]
[1672762018205,92.34953188,1212.3,1212.2,45.99318406]
[1672762018755,89.86532835,1212.3,1212.2,45.99318406]
[1672762018944,92.34953188,1212.3,1212.2,45.99318406]
[1672762019805,89.86532835,1212.3,1212.2,45.99318406]
[1672762020211,92.3491456,1212.3,1212.2,45.99318406]
[1672762020581,89.24534894,1212.3,1212.2,55.89253406]
[1672762020897,85.53441305,1212.3,1212.2,57.94253406]
[1672762021094,89.24534894,1212.3,1212.2,57.94253406]
[1672762021253,85.53441305,1212.3,1212.2,57.94253406]
[1672762022745,85.53441305,1212.3,1212.2,55.89253406]
[1672762023152,85.53441305,1212.3,1212.2,55.88970063]
[1672762023382,85.53441305,1212.3,1212.2,57.93970063]
[1672762023894,85.53441305,1212.3,1212.2,48.65965063]
[1672762024100,85.53441305,1212.3,1212.2,51.65965063]
[1672762024691,65.04099587,1212.3,1212.2,74.95965063]
[1672762024993,38.83811312,1212.3,1212.2,83.66265063]
[1672762025148,22.79968653,1212.3,1212.2,83.66265063]
[1672762025354,2.78425822,1212.5,1212.3,15.5]
[1672762025612,4.82660261,1212.8,1212.5,8.703]
[1672762025818,4.82660261,1212.8,1212.7,8.24486114]
[1672762025983,0.08270194,1212.9,1212.7,52.24676864]
[1672762026195,0.08270194,1212.9,1212.8,12.55407794]
[1672762026196,0.01670194,1212.9,1212.8,12.55407794]
[1672762026404,0.01670194,1212.9,1212.8,35.68633973]
[1672762027204,0.01670194,1212.9,1212.8,31.38112293]
[1672762027411,2.57170194,1212.9,1212.8,29.33112293]
[1672762027724,6.87612456,1212.9,1212.8,4.24786114]
[1672762027939,4.32112456,1212.9,1212.8,4.14886114]
[1672762028283,0.01670194,1212.9,1212.8,45.12757254]
[1672762028418,0.01670194,1212.9,1212.8,45.22657254]
[1672762028993,0.01670194,1212.9,1212.8,35.33212254]
[1672762029672,0.01670194,1212.9,1212.8,25.43767254]
[1672762029880,0.01670194,1212.9,1212.8,35.33212254]
[1672762030292,0.01670194,1212.9,1212.8,43.17657254]
[1672762030728,2.57170194,1212.9,1212.8,40.29114775]
[1672762030966,6.87373442,1212.9,1212.8,4.24786114]
[1672762031194,7.49263442,1212.9,1212.8,4.14886114]
[1672762031351,12.99263442,1212.9,1212.7,0.099]
[1672762031717,4.30203125,1212.8,1212.7,4.14886114]
[1672762031934,5.15103125,1212.8,1212.6,9.99481]
[1672762032076,4.3052168,1212.7,1212.6,4.24786114]
[1672762032438,24.01351414,1212.7,1212.5,0.099]
[1672762032500,4.3052168,1212.6,1212.5,4.14886114]
[1672762032970,4.3052168,1212.6,1212.5,3.57256114]
[1672762033183,18.02167979,1212.7,1212.5,3.57256114]
[1672762033501,4.28949304,1212.6,1212.5,3.57256114]
[1672762033865,4.28949304,1212.6,1212.5,13.46946114]
[1672762034072,4.37902734,1212.7,1212.5,13.56846114]
[1672762034286,4.37902734,1212.7,1212.6,10.48835418]
[1672762034287,0.619,1212.7,1212.6,10.48835418]
[1672762034511,5.619,1212.7,1212.6,40.27562418]
[1672762034726,5.0,1212.7,1212.6,40.27562418]
[1672762035983,24.73622734,1212.8,1212.6,40.27562418]
[1672762036210,24.67022734,1212.8,1212.7,28.22889418]
[1672762036431,21.60902734,1212.8,1212.7,18.43262418]
[1672762036964,7.70917645,1212.8,1212.7,28.32789418]
[1672762037284,5.619,1212.8,1212.7,44.3005166]
[1672762037603,0.70160194,1212.9,1212.7,44.3005166]
[1672762037811,0.63560194,1212.9,1212.8,30.27725418]
[1672762037986,5.63560194,1212.9,1212.8,40.27070418]
[1672762038542,5.63560194,1212.9,1212.8,30.37625418]
[1672762038711,5.63560194,1212.9,1212.8,28.32625418]
[1672762038925,5.63560194,1212.9,1212.8,18.43180418]
[1672762039635,9.92509498,1212.9,1212.8,17.21677028]
[1672762039783,9.92509498,1212.9,1212.8,27.11122028]
[1672762040240,5.63560194,1212.9,1212.8,27.11122028]
[1672762040402,5.63560194,1212.9,1212.8,39.05167028]
[1672762040751,5.63560194,1212.9,1212.8,43.94630431]
[1672762040924,5.01670194,1212.9,1212.8,43.94630431]
[1672762043486,0.01670194,1212.9,1212.8,43.94630431]
[1672762044226,1.94e-06,1212.9,1212.8,55.89075431]
[1672762044372,1.94e-06,1212.9,1212.8,65.68135431]
[1672762044582,1.94e-06,1212.9,1212.8,53.82575431]
[1672762045279,0.00200194,1212.9,1212.8,53.82275431]
[1672762045428,1.94e-06,1212.9,1212.8,53.82575431]
[1672762045845,1.94e-06,1212.9,1212.8,61.58535431]
[1672762046498,1.94e-06,1212.9,1212.8,51.79475431]
[1672762047216,1.94e-06,1212.9,1212.8,63.79465431]
[1672762047356,1.94e-06,1212.9,1212.8,61.74465431]
[1672762047536,1.94e-06,1212.9,1212.8,59.70565431]
[1672762047747,1.94e-06,1212.9,1212.8,61.75565431]
[1672762048543,1.94e-06,1212.9,1212.8,59.70565431]
[1672762048753,1.94e-06,1212.9,1212.8,49.81120431]
[1672762049580,1.94e-06,1212.9,1212.8,41.90030431]
[1672762051865,1.94e-06,1212.9,1212.8,28.32625418]
[1672762053161,1.94e-06,1212.9,1212.8,38.22070418]
[1672762054816,1.94e-06,1212.9,1212.8,40.27070418]
[1672762055823,1.94e-06,1212.9,1212.8,28.32625418]
[1672762056861,3.64813409,1212.9,1212.8,28.32625418]
[1672762057969,1.94e-06,1212.9,1212.8,28.32625418]
[1672762058238,1.94e-06,1212.9,1212.8,38.22070418]
[1672762059069,1.94e-06,1212.9,1212.8,28.32625418]
[1672762059576,1.94e-06,1212.9,1212.8,38.22070418]
[1672762059936,1.94e-06,1212.9,1212.8,44.0173976]
[1672762060811,1.94e-06,1212.9,1212.8,46.0673976]
[1672762061299,1.94e-06,1212.9,1212.8,44.0173976]
[1672762061656,1.94e-06,1212.9,1212.8,34.1229476]
[1672762062201,1.94e-06,1212.9,1212.8,28.32625418]
[1672762063799,1.94e-06,1212.9,1212.8,20.46480418]
[1672762064344,1.94e-06,1212.9,1212.8,20.46219547]
[1672762064557,1.94e-06,1212.9,1212.8,18.42919547]
[1672762064920,3.69402928,1212.9,1212.8,18.42919547]
[1672762065384,3.69402928,1212.9,1212.8,28.32364547]
[1672762065862,3.69402928,1212.9,1212.8,30.37064547]
[1672762066542,3.69402928,1212.9,1212.8,18.42919547]
[1672762066709,7.48977584,1212.9,1212.8,18.42919547]
[1672762066918,7.48977584,1212.9,1212.8,14.13970243]
[1672762067191,7.48977584,1212.9,1212.8,18.42919547]
[1672762068934,3.69402928,1212.9,1212.8,18.42919547]
[1672762069148,3.69402928,1212.9,1212.8,28.32364547]
[1672762069645,3.69402928,1212.9,1212.8,18.42919547]
[1672762069882,3.69402928,1212.9,1212.8,20.47619547]
[1672762070089,3.69402928,1212.9,1212.8,18.42919547]
[1672762070643,6.10117867,1212.9,1212.8,18.42919547]
[1672762071356,6.10117867,1212.9,1212.8,28.32364547]
[1672762071568,3.69402928,1212.9,1212.8,32.92593302]
[1672762071908,3.69402928,1212.9,1212.8,44.87038302]
[1672762071909,1.94e-06,1212.9,1212.8,44.87038302]
[1672762072708,1.94e-06,1212.9,1212.8,46.92038302]
[1672762076248,1.94e-06,1212.9,1212.8,44.87038302]
[1672762077238,1.94e-06,1212.9,1212.8,46.92038302]
[1672762077532,1.94e-06,1212.9,1212.8,44.87038302]
[1672762077746,1.94e-06,1212.9,1212.8,46.92038302]
[1672762078313,1.94e-06,1212.9,1212.8,54.76483302]
[1672762078563,1.94e-06,1212.9,1212.8,56.80683302]
[1672762079155,1.94e-06,1212.9,1212.8,46.91238302]
[1672762080334,1.94e-06,1212.9,1212.8,42.82038302]
[1672762080561,1.94e-06,1212.9,1212.8,23.03148302]
[1672762080766,1.94e-06,1212.9,1212.8,18.42919547]
[1672762080940,1.94e-06,1212.9,1212.8,28.32364547]
[1672762081420,3.69402928,1212.9,1212.8,28.32364547]
[1672762083499,1.94e-06,1212.9,1212.8,28.32364547]
[1672762083669,1.94e-06,1212.9,1212.8,31.57464547]
[1672762083880,1.94e-06,1212.9,1212.8,46.45837902]
[1672762084568,3.69402928,1212.9,1212.8,36.56392902]
[1672762084717,3.69402928,1212.9,1212.8,46.45837902]
[1672762084936,1.94e-06,1212.9,1212.8,36.56392902]
[1672762085404,3.69402928,1212.9,1212.8,36.56392902]
[1672762085623,3.69402928,1212.9,1212.8,11.78574547]
[1672762085805,7.98352232,1212.9,1212.8,5.87525243]
[1672762086022,7.98352232,1212.9,1212.8,9.43448044]
[1672762086232,7.98352232,1212.9,1212.8,7.80448044]
[1672762086857,7.98352232,1212.9,1212.8,27.59338044]
[1672762087071,7.98352232,1212.9,1212.8,37.48783044]
[1672762087299,3.69402928,1212.9,1212.8,37.48783044]
[1672762087457,7.98352232,1212.9,1212.8,39.11783044]
[1672762087668,3.69402928,1212.9,1212.8,39.11783044]
[1672762088563,7.98352232,1212.9,1212.8,39.11783044]
[1672762088726,3.69402928,1212.9,1212.8,39.11783044]
[1672762088938,3.69402928,1212.9,1212.8,37.48783044]
[1672762089166,7.98352232,1212.9,1212.8,37.48783044]
[1672762089408,3.69402928,1212.9,1212.8,39.10983044]
[1672762089930,3.69402928,1212.9,1212.8,39.11583044]
[1672762090314,3.69402928,1212.9,1212.8,37.48783044]
[1672762090525,3.69402928,1212.9,1212.8,39.11783044]
[1672762090732,3.69402928,1212.9,1212.8,27.59338044]
[1672762090946,3.69402928,1212.9,1212.8,29.22338044]
[1672762091619,3.69402928,1212.9,1212.8,37.48783044]
[1672762091985,3.69402928,1212.9,1212.8,44.69643248]
[1672762092404,3.69402928,1212.9,1212.8,43.06843248]
[1672762092651,3.69402928,1212.9,1212.8,44.69343248]
[1672762092906,3.69402928,1212.9,1212.8,34.79898248]
[1672762093306,3.69402928,1212.9,1212.8,33.17398248]
[1672762093523,3.69402928,1212.9,1212.8,34.79198248]
[1672762094246,3.69402928,1212.9,1212.8,34.80198248]
[1672762095176,3.69402928,1212.9,1212.8,23.27953248]
[1672762095424,3.69402928,1212.9,1212.8,27.59338044]
[1672762095631,1.94e-06,1212.9,1212.8,18.2407412]
[1672762095848,1.94e-06,1212.9,1212.8,9.9762912]
[1672762096052,3.70875172,1212.9,1212.8,8.3462912]
[1672762096394,7.41750096,1212.9,1212.8,8.3462912]
[1672762096700,7.41750096,1212.9,1212.8,18.2407412]
[1672762098383,3.70875172,1212.9,1212.8,18.2407412]
[1672762098741,3.70875172,1212.9,1212.8,9.07451495]
[1672762099737,3.70875172,1212.9,1212.8,18.96896495]
[1672762099952,3.70875172,1212.9,1212.8,23.84964344]
[1672762101287,7.41769655,1212.9,1212.8,23.84964344]
[1672762106458,3.70875172,1212.9,1212.8,23.84964344]
[1672762106669,7.41799884,1212.9,1212.8,18.96896495]
[1672762106924,7.41844706,1212.9,1212.8,18.96896495]
[1672762107066,7.41844706,1212.9,1212.8,18.96565526]
[1672762107440,3.70875172,1212.9,1212.8,18.96565526]
[1672762107662,7.41839989,1212.9,1212.8,18.96565526]
[1672762107876,7.41839989,1212.9,1212.8,23.84787488]